Cogmind - Beta 14 @@@ ROGUE MODE // 2025.01.03 @ 15:05:56 Player: Byrnorthil Result: Destroyed by D-53 Grenadier with Mini Grenade Launcher Performance ------------- Evolutions (0) 0 Regions Visited (2) 400 Robots Destroyed (33) 165 Value Destroyed (920) 920 Prototype IDs (0) 0 Alien Tech Used (0) 0 Bonus (0) 0 TOTAL SCORE: 1485 Bonus ------- None Cogmind --------- Core Integrity 0/250 Matter 168/300 Energy 86/100 System Corruption 0% Temperature Cool (3) Movement Treading (320) Ox2 Location -10/Mines Parts ------- > --- POWER (1) -------- (None) > --- PROPULSION (2) --- Light Treads > --- UTILITY (2) ------ High-capacity Storage Unit > --- WEAPON (2) ------- Heavy Assault Rifle > --- INVENTORY (20) --- Ion Engine Light Ion Engine Light Ion Engine Light Treads Aluminum Leg Aluminum Leg Improved Heat Sink Improved Heat Sink Small Storage Unit Experimental Sensor Array Targeting Computer Utility Shielding Light Assault Rifle Light Cannon Datajack Peak State ------------ > --- POWER ------------ Light Nuclear Core > --- PROPULSION ------- Light Treads Light Treads > --- UTILITY ---------- Improved Heat Sink High-capacity Storage Unit > --- WEAPON ----------- Light Cannon Light Cannon > --- INVENTORY -------- Ion Engine Ion Engine Light Ion Engine Light Ion Engine Light Treads Aluminum Leg Aluminum Leg Improved Heat Sink Small Storage Unit Light Assault Rifle Light Cannon Grenade Launcher Datajack [Rating: 12] Favorites ----------- Power Ion Engine Engine Ion Engine Power Core Light Nuclear Core Propulsion Aluminum Leg Treads Light Treads Leg Aluminum Leg Utility Small Storage Unit Device Improved Heat Sink Storage Small Storage Unit Protection Light Armor Plating Weapon Light Cannon Energy Gun Beam Rifle Ballistic Gun Light Assault Rifle Ballistic Cannon Light Cannon Launcher Grenade Launcher Build | -11 -10 -10 ------- Run | Yrd Mat Min Slots Evolved . | . . . Power . | . . . Propulsion . | . . . Utility . | . . . Weapon . | . . . Parts Attached 39 | 7 17 15 Power 8 | 1 5 2 Engine 7 | 1 5 1 Core 1 | . . 1 Reactor . | . . . Propulsion 11 | 2 6 3 Treads 3 | . . 3 Leg 8 | 2 6 . Wheel . | . . . Hover . | . . . Flight . | . . . Utility 9 | 2 3 4 Device 4 | 1 2 1 Storage 2 | 1 . 1 Processor . | . . . Hackware . | . . . Protection 3 | . 1 2 Artifact . | . . . Weapon 11 | 2 3 6 Energy Gun 1 | . . 1 Energy Cannon . | . . . Ballistic Gun 4 | 2 1 1 Ballistic Cannon 4 | . 2 2 Launcher 2 | . . 2 Special Weapon . | . . . Impact Weapon . | . . . Slashing Weapon . | . . . Piercing Weapon . | . . . Special Melee Weapon . | . . . Unidentified Prototypes . | . . . Parts Lost 13 | . 2 11 Power 2 | . . 2 Propulsion 2 | . . 2 Utility 4 | . 1 3 Weapon 5 | . 1 4 Highest Loss Streak 8 | . 2 8 To Critical Strikes . | . . . Average Slot Usage (%) 97 | . 99 95 Engine 13 | . 14 12 Treads 13 | . . 26 Leg 14 | . 28 1 Device 10 | . 12 9 Storage 14 | . 14 14 Protection 1 | . 1 1 Ballistic Gun 7 | . 15 . Ballistic Cannon 17 | . 12 22 Launcher 2 | . . 5 Peak Build Rating 12 | 9 9 12 Average Rating 8 | 5 7 9 On Entrance 5 | . 9 7 Naked Turns . | . . . Heaviest Build 54 | 14 19 54 Greatest Support 40 | 20 20 40 Greatest Overweight (x) 1 | . . 1 Average Overweight (x) . | . . . Largest Inventory Capacity 20 | 8 8 20 Average Capacity 13 | 7 8 19 Most Carried 19 | 4 8 19 Average Carried 10 | 3 7 13 Final Capacity 20 | 8 8 20 Final Carried 15 | 4 8 15 Class Distribution -------------------- 74% | Mutant 25% | Scavenger-Mutant Dominant Class ---------------- Scavenger-Mutant | -10/Materials Mutant | -10/Mines Resources | -11 -10 -10 ----------- Run | Yrd Mat Min Matter Collected 1044 | 261 439 344 Remotely . | . . . Salvage Created 871 | 12 544 315 Parts 66 | 2 42 22 Haulers Intercepted 1 | . 1 . Recyclers Shooed 1 | 1 . . Parts Field Recycled . | . . . Retrieved Matter . | . . . Parts Self-Destructed . | . . . Prevented . | . . . Kills | -11 -10 -10 ------- Run | Yrd Mat Min Combat Hostiles Destroyed 35 | . 14 21 Guns 12 | . 11 1 Cannons 9 | . 3 6 AOE 14 | . . 14 Classes Destroyed 10 | 1 5 4 Worker 2 | . 1 1 Tunneler 1 | 1 . . Hauler 1 | . 1 . Operator 1 | . 1 . Watcher 1 | . 1 . Swarmer 6 | . . 6 Grunt 18 | . 14 4 Sentry 2 | . . 2 Demolisher 1 | . . 1 Assembled 8 | . . 8 Best Kill Streak 9 | 1 6 9 Combat Bots Only 9 | . 4 9 Max Kills in Single Turn 2 | 1 1 2 Gunslinging . | . . . Exploded 2 | . . 2 Melee . | . . . Uniques/NPCs Destroyed . | . . . Combat | -11 -10 -10 -------- Run | Yrd Mat Min Hostile Shots Fired 166 | . 94 72 Missed 37 | . 25 12 Damage Taken 2195 | . 817 1378 Core 250 | . 77 173 Absorbed by Shields . | . . . Core Remaining (%) 100 | 100 . . Volleys Fired 106 | 5 70 31 Largest 2 | 2 2 2 Hottest 79 | 40 70 79 Shots Fired 204 | 10 140 54 Gun 114 | 10 100 4 Cannon 75 | . 40 35 Launcher 15 | . . 15 Special . | . . . Kinetic 187 | 10 140 37 Thermal 2 | . . 2 Explosive 15 | . . 15 Electromagnetic . | . . . Robot Hit Streak 13 | 7 13 13 Robot Miss Streak 5 | 1 5 4 Penetration Max . | . . . Secondary Targets 2 | . 1 1 Max Gunslinging Chain 1 | . 1 1 Shots Hit Robots 130 | 8 91 31 Core Hits 73 | 3 34 36 Critical Kills . | . . . Critical Parts Destroyed 1 | . 1 . Critical Strikes 4 | . 4 . Destroy 1 | . 1 . Blast 3 | . 3 . Melee Attacks . | . . . Impact . | . . . Slashing . | . . . Piercing . | . . . Sneak Attacks . | . . . Combat Hostiles . | . . . Follow-up Attacks . | . . . Damage Inflicted 2435 | 78 1077 1280 Guns 825 | 78 689 58 Cannons 718 | . 388 330 Explosions 876 | . . 876 Melee . | . . . Ramming 16 | . . 16 Kinetic 1513 | 78 1077 358 Thermal 30 | . . 30 Explosive 876 | . . 876 Electromagnetic . | . . . Impact . | . . . Slashing . | . . . Piercing . | . . . Highest Corruption . | . . . Average Corruption . | . . . Corruption Purged . | . . . Corruption Blocked . | . . . Overload Shots . | . . . Overflow Damage 63 | . 13 50 Projectiles 13 | . 13 . Explosions 50 | . . 50 Melee . | . . . Knockbacks 8 | . 7 1 Impact . | . . . Kinetic 7 | . 6 1 Secondary 1 | . 1 . Self-Inflicted Damage 141 | . . 141 Shots 5 | . . 5 Rammed 2 | . . 2 Targets Rammed 5 | . 3 2 Kicked 3 | . 3 . Crushed . | . . . Highest Temperature 114 | . 114 54 Average Temperature 20 | . 19 21 Received Heat Transfer 718 | . 525 193 Siege Activations . | . . . Robots Corrupted . | . . . Combat Hostiles . | . . . Parts Fried . | . . . Impact Corruptions . | . . . Robots Melted . | . . . Combat Hostiles . | . . . Parts Melted . | . . . Heat Transferred 74 | . . 74 Parts Sabotaged . | . . . Parts Stolen . | . . . Parts Stripped . | . . . Power Chain Reactions . | . . . Alert | -11 -10 -10 ------- Run | Yrd Mat Min Peak Influence 357 | 5 313 357 Initial 69 | . 3 69 Average 182 | 2 148 232 Maximum Alert Level 1 | . 1 1 Low Security (%) 46 | 100 73 14 Level 1 53 | . 26 85 Level 2 . | . . . Level 3 . | . . . Level 4 . | . . . Level 5 . | . . . High Security . | . . . Max Security . | . . . Squads Dispatched 5 | . 5 . Investigation 4 | . 4 . Extermination . | . . . Reinforcement 1 | . 1 . Assault . | . . . Garrison . | . . . Intercept . | . . . Searches Triggered . | . . . Construction Impeded . | . . . Haulers Reinforced . | . . . Active Scanning Responses . | . . . Cargo Convoy Interrupts . | . . . Stealth | -11 -10 -10 --------- Run | Yrd Mat Min Distress Signals 2 | . 2 . Communications Jammed . | . . . Distress Signals . | . . . Times Spotted 58 | . 29 29 Peak Tracking Total 8 | . 5 8 Tactical Retreats 2 | . 1 1 Traps | -11 -10 -10 ------- Run | Yrd Mat Min Traps Triggered 2 | . 2 . Indirectly . | . . . Trap Hack Attempts . | . . . Triggered . | . . . Disarmed . | . . . Reprogrammed . | . . . Reused . | . . . Traps Extracted . | . . . Installed . | . . . Triggered . | . . . Machines | -11 -10 -10 ---------- Run | Yrd Mat Min Machines Disabled 1 | . . 1 Max in Single Turn 1 | . . 1 Machines Repaired . | . . . Machines Dismantled . | . . . Machines Sabotaged . | . . . Overloaded Fab Kills . | . . . Hacking | -11 -10 -10 --------- Run | Yrd Mat Min Machines Accessed 3 | . 3 . Terminals 2 | . 2 . Fabricators . | . . . Repair Stations . | . . . Recycling Units 1 | . 1 . Scanalyzers . | . . . Garrison Access . | . . . Total Hacks 11 | . 11 . Successful 6 | . 6 . Failed 5 | . 5 . Catastrophic . | . . . Database Lockouts . | . . . Manual 9 | . 9 . Terminals 7 | . 7 . Fabricators . | . . . Repair Stations . | . . . Recycling Units 4 | . 4 . Scanalyzers . | . . . Garrison Access . | . . . Terminal Hacks . | . . . Fabricator Hacks . | . . . Repair Station Hacks . | . . . Recycling Unit Hacks 2 | . 2 . Report Inventory 1 | . 1 . Retrieve Components 1 | . 1 . Scanalyzer . | . . . Garrison Access Hacks . | . . . Unauthorized Hacks 4 | . 4 . Terminals 3 | . 3 . Track 1 | . 1 . Botnet 2 | . 2 . Fabricators . | . . . Repair Stations . | . . . Recycling Units 1 | . 1 . Mask 1 | . 1 . Scanalyzers . | . . . Garrison Access . | . . . Data Cores Recovered . | . . . Used . | . . . Hacking Detections 3 | . 3 . Full Trace Events 3 | . 3 . Feedback Events . | . . . Feedback Blocked . | . . . Robot Schematics Acquired . | . . . Robots Built . | . . . Authchips . | . . . Time . | . . . Total Robot Build Rating . | . . . Part Schematics Acquired . | . . . Parts Built . | . . . Authchips . | . . . Time . | . . . Total Part Build Rating . | . . . Parts Repaired . | . . . Time . | . . . Parts Recycled . | . . . Recycled Matter . | . . . Retrieved Matter . | . . . Retrieved Components 7 | . 7 . Parts Scanalyzed . | . . . Part Schematics Acquired . | . . . Parts Damaged . | . . . Bothacking | -11 -10 -10 ------------ Run | Yrd Mat Min Used RIF Installer . | . . . Robots Hacked . | . . . Non-combat . | . . . Combat . | . . . Robot Hacks Applied . | . . . Relay Couplers Released . | . . . Fabnet Peak Effective % . | . . . Robots Rewired . | . . . Allies Hacked . | . . . Hacks Repelled . | . . . Allies | -11 -10 -10 -------- Run | Yrd Mat Min Total Allies . | . . . Largest Group . | . . . Highest-Rated Group . | . . . Highest-Rated Ally . | . . . Total Orders . | . . . Ally Attacks . | . . . Total Damage . | . . . Kills . | . . . Allies Corrupted . | . . . Allies Melted . | . . . Intel | -11 -10 -10 ------- Run | Yrd Mat Min Robot Analysis Total . | . . . Derelict Logs Recovered 1 | . . 1 Drone Launches . | . . . Drone Recoveries . | . . . Exploration | -11 -10 -10 ------------- Run | Yrd Mat Min Turns Passed 1726 | 76 820 830 Spaces Moved 789 | 41 450 298 Core 4 | 4 . . Treads 282 | . . 282 Legs 503 | 37 450 16 Wheels . | . . . Hover . | . . . Flight . | . . . Fastest Speed 50 | 50 120 120 Average Speed 162 | 113 120 233 Slowest Speed 240 | 120 120 240 Overloaded Moves . | . . . Propulsion Burnouts . | . . . Robots Hopped . | . . . Cave-ins Triggered . | . . . Exploration Rate (%) 42 | 4 60 64 Regions Visited 2 Branch Regions 1 Pre-discovered Areas . | . . . Known Exits Taken . | . . . Unknown Exits Taken 2 | 1 1 . Scrap Searched 1 | . . 1 Spaces Dug 8 | . . 8 Terrain Destroyed 98 | . . 98 Melee . | . . . Projectile . | . . . AOE 98 | . . 98 Terrain Rammed . | . . . Walls Destroyed . | . . . Machines Disabled . | . . . Actions | -11 -10 -10 --------- Run | Yrd Mat Min Total 1039 | 58 608 373 Wait 58 | 2 41 15 Move 787 | 40 449 298 Hop . | . . . Pick Up 25 | 4 9 12 Fast Attach 12 | 7 4 1 Attach 7 | . 1 6 Detach . | . . . Swap 20 | . 12 8 Drop 19 | . 19 . Fire 106 | 5 70 31 Melee . | . . . Ram . | . . . Kick 3 | . 3 . Crush 2 | . . 2 Escape Stasis . | . . . Rewire . | . . . Trap . | . . . Miscellaneous . | . . . Route ------- -11/Scrapyard -10/Materials (discovered 3 exits: [*Mat x2] / [*Min]) -10/Mines (discovered 3 exits: [*Mat x2] / Sub) History --------- Turn | Location | Event 6 | -11/Scrapyard | Discovered new exit (range 15) 77 | -11/Scrapyard | Entered Materials 306 | -10/Materials | Build established: Mutant 322 | -10/Materials | Discovered new exit (range 16) 518 | -10/Materials | Discovered new exit (range 14) 651 | -10/Materials | Discovered new exit (range 14) 782 | -10/Materials | Build established: Scavenger-Mutant 897 | -10/Materials | Entered Mines 1119 | -10/Mines | Build established: Mutant 1205 | -10/Mines | Discovered new exit (range 5) 1310 | -10/Mines | Discovered new exit (range 7) 1349 | -10/Mines | Core integrity fell below 50% 1562 | -10/Mines | Identified exit to Subcaves 1677 | -10/Mines | Assembled infested the area 1692 | -10/Mines | Found a damaged Exp. Sensor Array with a note attached 1696 | -10/Mines | Found Prototype Device 1725 | -10/Mines | Core integrity fell below 20% 1727 | -10/Mines | Destroyed by D-53 Grenadier with Mini Grenade Launcher Last Messages --------------- 01713_ as-68450 destroyed. 01715_ as-32981 destroyed. 01715_ as-19727 destroyed. 01715_ as-96892 destroyed. 01715_ as-05521 destroyed. 01716_ The unstable cave ceiling collapses. 01716_ Lgt. Armor Plating destroyed. 01720_ The unstable cave ceiling collapses. 01720_ Lgt. Cannon destroyed. 01720_ Lgt. Armor Plating destroyed. 01720_ as-95811 destroyed. 01721_ The unstable cave ceiling collapses. 01722_ Grenade Launcher destroyed. 01723_ The unstable cave ceiling collapses. 01723_ Ion Engine destroyed. 01724_ The unstable cave ceiling collapses. 01724_ Lgt. Treads destroyed. 01727_ D-53 Grenadier destroyed. 01727_ Switching to secondary target: D-53 Grenadier. 01727_ Beam Rifle destroyed. Map ----- +----------------------------------------------------+ | | | | | | | | | | | ????????????????????????????????????????? | | ????????????????????????????????????????? | | ????????????????????????????????????????? | | ????????????????????????????????????????? | | ????????????????????????????????????????? | | ????????????????????????????????????????? | | ????????????????????????????????????????? | | ????????????????????????????????????????? | | ????????????????????????????????????????? | | ????????????????????????????????????????? | | ????????????????????????????????????????? | | ??????????????????##????????????????????? | | ????##??##???????? ????????????????????? | | ???## ##=%??????? #????????????????????? | | ???# * ?????? #????????????????????? | | ???# a ##### #????????????????????? | | ???# # # ##???????????????????? | | ???# % ##??????????????????? | | ????# # #?????????####?????? | | ????# #????????## #?????? | | ????# @ #????????# #?????? | | ?????# #????????# #?????? | | ?????# # #????????# ##????? | | ?????## #????????# ! ##???? | | ??????### ##?????????# ##??? | | ????????#### ###?????###### #??? | | ???????????## d ######### ## ! #??? | | ????????????## # ## ##??? | | ?????????????## ####???? | | ??????????????# [ ##??????? | | ?????????????## % ##???????? | | ????????????##r ##????????? | | ????????????# ! ##?????????? | | ????????????# ## ! #??????????? | | ????????????## ### ##??????????? | | ?????????????##### #######??????????? | | ?????????????????## #??????????? | | ??????????????????# #??????????? | | ??????????????????# ##### #??????????? | | ??????????????????## ???# ####???????? | | ???????????????????# #??# #???????? | | ???????????????????#####??# #???????? | | ??????????????????????????##### #???????? | | ?????????#####????????????????# #???????? | | ??######## ######???????????# #?####??? | +----------------------------------------------------+ Best States ------------- Heat Dissipation 39 Energy Generation 14 Energy Capacity 250 Matter Stores 300 Matter Capacity 300 Sight Range 16 Terrain Scan Range 16 Terrain Scan Density 10 Armor Coverage 150 Evasion (%) 55 Recoil Reduction 2 Item Schematics ----------------- None Robot Schematics ------------------ None Fabricated ------------ Nothing Alien Tech Used ----------------- None Achievements -------------- None Challenges ------------ None Game ------ Seed ExoskeletonBattleDevice Manual? 0 Play Time 00:20:51 Cumulative 131.4 hours Start 2025.01.03 @ 14:38:32 End 2025.01.03 @ 15:05:56 Sessions 1 Manual Loads 0 Difficulty Rogue Special Mode None Game No. 41 Rogue 41 Adventurer 0 Explorer 0 Win Type - Total 1 Types 1/0/0/0/0/0/0/0/0 Lore% 48 Gallery% 62 Achievement% 48 Wizard Run 0 Options --------- Layout 0 ASCII 0 Keyboard 1 Movement Arrows Keybinds 0 Fullscreen 2 Font 36/Terminus++ Map View 76x50 Zoom Use 0% Tactical HUD 1 Map Filters NONE Filters NONE Steam 1 RUN: def9c7c8-f1fe-46b9-b097-dbde67f56c11